{"text_format":"1","workbook":"xlsx","n_sheets":3,"sheets":["Istruzioni per l'uso","Budget personale annuale","Budget personale annuale_p"],"not_rendered":{"charts":0,"images":3,"macros":1,"external_links":0,"defined_names":4,"comments":0,"pivot_tables":0},"unopened":[],"bounds":{"document_bytes":16777216,"sheet_cells":100000,"rows_first":2000,"rows_last":500,"rows_between":2000,"halvings":0,"cell_chars":16384,"cell_head_chars":4096},"cells_cut":0,"cells_raw":0,"read":"whole","date_system":"1900"}

{"sheet":"Istruzioni per l'uso","index":0,"n_rows":17,"n_cols":9,"rows_kept":17,"cut":false,"hidden":false,"merged":[[8,7,14,16],[16,7,22,16]]}
[]
[]
[null,null,null,null,null,null,null,null,"ESERCIZIO COMPLEMENTARE"]
[null,null,"ISTRUZIONI PER L'USO"]
[]
[null,null,"NOTA: ",null,null,"Il lavoro al computer e/o l'utilizzo della versione stampata del documento «Budget personale annuale» è raccomandato ma non è obbligatorio."]
[]
[]
[null,null,"«Budget personale annuale»",null,null,null,null,"Questa scheda permette di determinare il vostro budget personale annuale. Inserite i vostri «Redditi» mensili (da gennaio a dicembre). In caso di dubbio, partite dal principio che il vostro reddito disponibile sia costante durante tutto l'anno. In questo caso, potete inserire l'ammontare nella casella «Reddito». Cliccate quindi sulla freccia «Copiare il valore» e il valore corrispondente sarà riportato su tutto l'anno. Inserite, in seguito, le spese medie previste per ogni voce del bilancio nella colonna verde. Per ultimo, potete redigere il vostro piano annuale (da gennaio a dicembre).    "]
[]
[]
[]
[]
[]
[]
[]
[null,null,"«Budget personale annuale_p»",null,null,null,null,"Questa scheda, se stampata, può servire da scheda di lavoro. Potete pianificare il vostro budget personale annuale, inserendo i valori stimati nelle caselle in verde (reddito e spese). Sulla base delle vostra pianificazione, è possibile calcolare la somma residua alla fine di ogni mese (da gennaio a dicembre)."]

{"sheet":"Budget personale annuale","index":1,"n_rows":32,"n_cols":20,"rows_kept":32,"cut":false,"hidden":false,"merged":[[1,6,1,19]]}
[]
[]
[null,null,null,null,null,null,"Gen.","Feb","Mar","Apr","Mag","Giu","Lug","Ago","Set","Ott","Nov","Dic","Gen.","Totale"]
[]
[]
["Reddito",null,null,null,null,null,null,null,null,null,null,null,null,null,null,null,null,null,null,{"$f":"SUM(G6:R6)","v":0}]
[]
[]
["Spese"]
[]
[1,"Imposte",null,null,"Imposte federali, cantonali e comunali, tasse ufficiali",null,null,null,null,null,null,null,null,null,null,null,null,null,null,{"$f":"SUM(G11:R11)","v":0}]
[]
[2,"Sanità",null,null,"Premi dell'assicurazione, consultazioni mediche, farmaci",null,null,null,null,null,null,null,null,null,null,null,null,null,null,{"$f":"SUM(G13:R13)","v":0}]
[]
[3,"Sovvenzioni e regali",null,null,"Regali, donazioni, alimenti, contributi di assistenza",null,null,null,null,null,null,null,null,null,null,null,null,null,null,{"$f":"SUM(G15:R15)","v":0}]
[]
[4,"Abitazione",null,null,"Alloggio, energia",null,null,null,null,null,null,null,null,null,null,null,null,null,null,{"$f":"SUM(G17:R17)","v":0}]
[]
[5,"Alimentazione",null,null,"Beni alimentari, bevande",null,null,null,null,null,null,null,null,null,null,null,null,null,null,{"$f":"SUM(G19:R19)","v":0}]
[]
[6,"Abbigliamento e                     cura della persona",null,null,"Vestiti, scarpe prodotti igienici, parrucchiere\n",null,null,null,null,null,null,null,null,null,null,null,null,null,null,{"$f":"SUM(G21:R21)","v":0}]
[]
[7,"Cura della casa e            assicurazione vita",null,null,"Mobili, elettrodomestici, assicurazioni",null,null,null,null,null,null,null,null,null,null,null,null,null,null,{"$f":"SUM(G23:R23)","v":0}]
[]
[8,"Mobilità",null,null,"Trasporti privati e trasporti pubblici",null,null,null,null,null,null,null,null,null,null,null,null,null,null,{"$f":"SUM(G25:R25)","v":0}]
[]
[9,"Communicazioni e apparecchi elettronici",null,null,"Telefonia, Internet, TV, computer\n",null,null,null,null,null,null,null,null,null,null,null,null,null,null,{"$f":"SUM(G27:R27)","v":0}]
[null,null,null,null,null,null,null,null,null,null,null,null,null,null,null,null,null,null,null,{"$f":"SUM(G28:R28)","v":0}]
[10,"Tempo libero e formazione",null,null,"Uscite, vacanze, hobby, formazione\n",null,null,null,null,null,null,null,null,null,null,null,null,null,null,{"$f":"SUM(G29:R29)","v":0}]
[]
[]
["Somma residua",null,null,null,"Risparmio/Debito",null,null,null,null,null,null,null,null,null,null,null,null,null,null,{"$f":"SUM(G32:R32)","v":0}]

{"sheet":"Budget personale annuale_p","index":2,"n_rows":32,"n_cols":19,"rows_kept":32,"cut":false,"hidden":false,"merged":[[1,5,1,18]]}
[]
[]
[null,null,null,null,null,"Gen.","Feb.","Mar.","Apr.","Mag.","Giu.","Lug.","Ago.","Set.","Ott.","Nov.","Dic.",null,"Totale"]
[]
[]
["Reddito",null,null,null,null,null,null,null,null,null,null,null,null,null,null,null,null,null,{"$f":"SUM(F6:Q6)","v":0}]
[]
[]
["Spese"]
[]
[1,"Imposte",null,"Imposte federali, cantonali e comunali, tasse ufficiali",null,null,null,null,null,null,null,null,null,null,null,null,null,null,{"$f":"SUM(F11:Q11)","v":0}]
[]
[2,"Sanità",null,"Premi dell'assicurazione, consultazioni mediche, farmaci",null,null,null,null,null,null,null,null,null,null,null,null,null,null,{"$f":"SUM(F13:Q13)","v":0}]
[]
[3,"Sovvenzioni e regali",null,"Regali, donazioni, alimenti, contributi di assistenza",null,null,null,null,null,null,null,null,null,null,null,null,null,null,{"$f":"SUM(F15:Q15)","v":0}]
[]
[4,"Abitazione",null,"Alloggio, energia",null,null,null,null,null,null,null,null,null,null,null,null,null,null,{"$f":"SUM(F17:Q17)","v":0}]
[]
[5,"Alimentazione",null,"Beni alimentari, bevande",null,null,null,null,null,null,null,null,null,null,null,null,null,null,{"$f":"SUM(F19:Q19)","v":0}]
[]
[6,"Abbigliamento e            cura della persona",null,"Vestiti, scarpe prodotti igienici, parrucchiere",null,null,null,null,null,null,null,null,null,null,null,null,null,null,{"$f":"SUM(F21:Q21)","v":0}]
[]
[7,"Cura della casa e assicurazione vita",null,"Mobili, elettrodomestici, assicurazioni"]
[]
[8,"Mobilità",null,"Trasporti privati e trasporti pubblici",null,null,null,null,null,null,null,null,null,null,null,null,null,null,{"$f":"SUM(F25:Q25)","v":0}]
[]
[9,"Communicazioni e apparecchi elettronici",null,"Telefonia, Internet, TV, computer\n",null,null,null,null,null,null,null,null,null,null,null,null,null,null,{"$f":"SUM(F27:Q27)","v":0}]
[null,null,null,null,null,null,null,null,null,null,null,null,null,null,null,null,null,null,{"$f":"SUM(F28:Q28)","v":0}]
[10,"Tempo libero e formazione",null,"Uscite, vacanze, hobby, formazione\n",null,null,null,null,null,null,null,null,null,null,null,null,null,null,{"$f":"SUM(F29:Q29)","v":0}]
[]
[]
["Somma residua",null,null,"Risparmio/Debito",null,{"$f":"F6-SUM(F11:F29)","v":0},0,0,0,0,0,0,0,0,0,0,0,null,{"$f":"SUM(F32:Q32)","v":0}]